[Event "Cairns Cup 2024"]
[Site "Saint Louis"]
[Date "2024.06.16"]
[Round "4.5"]
[White "Kosteniuk, Alexandra"]
[Black "Lee, Alice"]
[Result "0-1"]
[ECO "C42"]
[WhiteElo "2501"]
[BlackElo "2368"]
[Annotator "TA"]
[PlyCount "70"]
[EventDate "2024.06.13"]
[EventType "tourn"]
[EventCountry "USA"]
[SourceTitle "playchess.com"]
[Source "ChessBase"]
[SourceQuality "1"]
[TimeControl "40/5400+30:1800+30"]

{[%evp 17,70,0,0,8,12,16,27,33,75,79,74,77,74,64,60,39,53,38,69,62,69,60,60,18,31,-12,-24,-45,-13,-61,-58,-126,-108,-199,-186,-203,-151,-208,-212,-316,-306,-393,-368,-1166,-1197,-29949,-29954,-29952,-12834,-29993,-29993,-29993,-29994,-29996,-29997]} 1. e4 {[%emt 0:00:00]} e5 {[%emt 0:00:00]} 2. Nf3 {[%emt 0:00:00]} Nf6 {[%emt 0:00:00]} 3. Nxe5 {[%emt 0:00:00]} d6 {[%emt 0:00:00]} 4. Nf3 {[%emt 0:00:00]} Nxe4 {[%emt 0:00:00]} 5. Nc3 {[%emt 0:00:00]} Nxc3 {[%emt 0:00:00]} 6. dxc3 {[%emt 0:00:00]} Be7 {[%emt 0:00:00]} 7. Bf4 {[%emt 0:00:00]} O-O {[%emt 0:00:00]} 8. Qd2 {[%emt 0:00:00]} Nd7 {[%emt 0:00:00]} 9. O-O-O {[%emt 0:00:00]} Nc5 {[%emt 0:00:00]} 10. h4 {[%emt 0:00:00]} Re8 {[%emt 0:00:00]} 11. Ng5 {[%emt 0:00:00] Dodges Ne4} h6 {[%emt 0:00:00] [#]} 12. Bc4 $1 {[%emt 0:00:00] White has an edge.} Be6 {[%emt 0:16:08]} (12... hxg5 13. hxg5 Be6 14. Rh2 $11) (12... Bxg5 13. hxg5) 13. Nxe6 {[%emt 0:00:00]} Nxe6 {[%emt 0:00:35]} 14. Bxe6 {[%emt 0:16:10]} fxe6 {[%emt 0:00:19]} 15. Kb1 {[%emt 0:03:16]} (15. Bxh6 gxh6 16. Rh3 (16. Qxh6 Bf8 $17) 16... Kf7 (16... Bxh4 17. Rdh1 $11) 17. Qxh6 Rh8 18. Qf4+ Bf6 $17) 15... Rf8 {[%emt 0:06:45]} 16. Qe3 {[%emt 0:02:08]} Qc8 {[%emt 0:12:00]} 17. Qe4 {[%emt 0:09:45][%cal Of4h6] Bxh6! would now be deadly.} Rf7 {[%emt 0:17:00]} 18. c4 {[%emt 0:02:03]} Rb8 {[%emt 0:10:18]} 19. Be3 {[%emt 0:10:52]} b5 {[%emt 0:01:24]} 20. cxb5 {[%emt 0:07:43]} (20. Bxa7 Qb7 21. Qxb7 (21. Bxb8 $2 Qxe4 22. Ba7 Bf6 $19) 21... Rxb7 $15) 20... Rxb5 {[%emt 0:00:16]} 21. c4 {[%emt 0:00:30]} (21. Bxa7 $2 c5 22. b3 Rb7 (22... Rxf2 $2 23. Rhf1 $19) 23. Bxc5 dxc5 $19) 21... Rb4 {[%emt 0:02:49][%cal Od6d5]} 22. Qc2 {[%emt 0:03:15][%cal Of2f3]} c5 {[%emt 0:08:41]} 23. g4 {[%emt 0:05:57]} (23. Bd2 $11 Rb6 (23... Rxf2 24. Rhf1 $11) 24. Bc3) 23... Qa6 $1 $15 {[%emt 0:15:40]} 24. b3 {[%emt 0:00:38]} (24. g5 $15) 24... d5 $1 $17 {[%emt 0:03:35]} 25. cxd5 {[%emt 0:06:37]} (25. g5 $17 {was necessary.}) 25... c4 $1 $19 {[%emt 0:00:01]} 26. g5 {[%emt 0:03:42] Prevents Bf6.} exd5 {[%emt 0:03:11] aiming for ...Qa4.} 27. Rh3 {[%emt 0:16:38]} (27. Rd2 $17 {keeps fighting.}) 27... Qe6 $1 {[%emt 0:02:05]} 28. Rg3 {[%emt 0:00:02] [#]} (28. Rdh1 {was the only defense.}) 28... Bd6 $1 {[%emt 0:00:25]} 29. f4 {[%emt 0:00:31]} Rc7 {[%emt 0:02:18] White must now prevent ...cxb3.} (29... Bxf4 30. Bxf4 cxb3 31. axb3 Rbxf4 32. gxh6 $17) 30. gxh6 $2 {[%emt 0:05:47]} (30. Qd2 c3 (30... cxb3 31. Qxd5 Qxd5 32. Rxd5 $15) 31. Qc2) 30... cxb3 $1 {[%emt 0:00:38]} 31. Qg6 {[%emt 0:01:26]} bxa2+ {[%emt 0:00:02]} 32. Ka1 {[%emt 0:00:58] [#]} Be5+ $1 {[%emt 0:01:42]} (32... Qxg6 33. Rxg6 Bf8 (33... Bxf4 34. Bxf4 Rxf4 35. Rxd5 $11) 34. hxg7 Rxg7 35. Rgg1 $15) 33. Kxa2 {[%emt 0:05:18]} Rb2+ {[%emt 0:00:07] Black mates.} 34. Ka1 {[%emt 0:00:02]} Rd2+ {[%emt 0:00:15]} 35. fxe5 {[%emt 0:00:07]} Qxe5+ {[%emt 0:00:03] Weighted Error Value: White=0.85/Black=0.05 (flawless) .  Mistake:       	White=6     	---        Inaccurate:     	White=3     	Black=3      OK:         	White=4     	Black=5      Best:        	---       	Black=1      Strong:       	White=1     	Black=6} 0-1